[Event "Amateur Tournament (ATO)"]
[Site "Biel, Switzerland"]
[Date "2026.07.15"]
[Round "2.4"]
[White "Linder, Ernst"]
[Black "Jahn, Thomas"]
[Result "0-1"]
[TimeControl "90+30+30sec/move"]
[WhiteTitle "-"]
[BlackTitle "-"]
[WhiteFideId "1357735"]
[BlackFideId "34679430"]
[WhiteElo "1783"]
[BlackElo "1944"]

1. d4 {[%emt 00:56:24]} d5 {[%emt 00:00:08]} 2. Nf3 {[%emt 00:01:26]} Nf6
{[%emt 00:00:10]} 3. Bf4 {[%emt 00:01:47]} e6 {[%emt 00:00:36]} 4. h3 {[%emt
00:00:28]} c5 {[%emt 00:03:05]} 5. e3 {[%emt 00:00:33]} Qb6 {[%emt 00:01:44]} 6.
Qc1 {[%emt 00:02:56]} Bd7 {[%emt 00:01:48]} 7. Nc3 {[%clk 01:22:10]} {[%emt
00:03:00]} cxd4 {[%clk 01:20:50]} {[%emt 00:05:40]} 8. exd4 {[%clk 01:21:56]}
{[%emt 00:00:44]} Bb4 {[%clk 01:18:19]} {[%emt 00:03:02]} 9. Bd2 {[%clk
01:19:51]} {[%emt 00:02:34]} Nc6 {[%clk 01:18:09]} {[%emt 00:00:40]} 10. a3
{[%clk 01:13:43]} {[%emt 00:06:38]} Be7 {[%clk 01:17:39]} {[%emt 00:00:59]} 11.
Be3 {[%clk 01:11:49]} {[%emt 00:02:25]} O-O {[%clk 01:09:41]} {[%emt 00:08:28]}
12. Bd3 {[%clk 01:11:45]} {[%emt 00:00:33]} Rac8 {[%clk 01:09:29]} {[%emt
00:00:43]} 13. O-O {[%clk 01:08:51]} {[%emt 00:01:41]} Na5 {[%clk 01:09:14]}
{[%emt 00:02:28]} 14. Na4 {[%clk 01:00:35]} {[%emt 00:08:45]} Bxa4 {[%clk
01:08:15]} {[%emt 00:01:30]} 15. b4 {[%clk 00:57:20]} {[%emt 00:03:44]} Nb3
{[%clk 01:08:29]} {[%emt 00:00:17]} 16. Qb2 {[%clk 00:56:47]} {[%emt 00:01:03]}
Nxa1 {[%clk 01:08:52]} {[%emt 00:00:08]} 17. Rxa1 {[%clk 00:56:54]} {[%emt
00:00:21]} Qc7 {[%clk 01:07:15]} {[%emt 00:02:08]} 18. g4 {[%clk 00:56:55]}
{[%emt 00:00:28]} Qc3 {[%clk 01:07:07]} {[%emt 00:00:39]} 19. Qa2 {[%clk
00:55:46]} {[%emt 00:01:39]} Bxc2 {[%clk 01:07:22]} {[%emt 00:00:15]} 20. Bf1
{[%clk 00:53:52]} {[%emt 00:02:22]} Ne4 {[%clk 01:04:35]} {[%emt 00:03:20]} 21.
Ne5 {[%clk 00:51:44]} {[%emt 00:02:37]} Bg5 {[%clk 01:01:27]} {[%emt 00:03:37]}
22. Bxg5 {[%clk 00:49:06]} {[%emt 00:03:08]} Nxg5 {[%clk 01:01:54]} {[%emt
00:00:03]} 23. Rc1 {[%clk 00:47:39]} {[%emt 00:01:57]} Qd2 {[%clk 01:00:33]}
{[%emt 00:01:52]} 24. Qa1 {[%clk 00:47:30]} {[%emt 00:00:40]} Ne4 {[%clk
01:00:50]} {[%emt 00:00:12]} 0-1

[Event "Amateur Tournament (ATO)"]
[Site "Biel, Switzerland"]
[Date "2026.07.15"]
[Round "2.5"]
[White "Schneuwly, Achim"]
[Black "Schmied, Stefan"]
[Result "1/2-1/2"]
[TimeControl "90+30+30sec/move"]
[WhiteTitle "-"]
[BlackTitle "-"]
[WhiteFideId "1303252"]
[BlackFideId "1335804"]
[WhiteElo "1933"]
[BlackElo "1781"]

1. Nf3 {[%clk 01:30:46]} {[%emt 00:00:13]} Nf6 {[%clk 01:30:24]} {[%emt
00:00:37]} 2. e3 {[%clk 01:30:22]} {[%emt 00:00:52]} d5 {[%clk 01:30:32]}
{[%emt 00:00:23]} 3. c4 {[%clk 01:30:14]} {[%emt 00:00:38]} c6 {[%clk
01:30:44]} {[%emt 00:00:18]} 4. b3 {[%clk 01:29:59]} {[%emt 00:00:44]} g6
{[%clk 01:28:07]} {[%emt 00:03:08]} 5. Bb2 {[%clk 01:30:01]} {[%emt 00:00:28]}
Bg7 {[%clk 01:28:24]} {[%emt 00:00:13]} 6. Be2 {[%clk 01:30:16]} {[%emt
00:00:15]} O-O {[%clk 01:27:14]} {[%emt 00:01:40]} 7. O-O {[%clk 01:30:36]}
{[%emt 00:00:10]} Bg4 {[%clk 01:23:24]} {[%emt 00:04:19]} 8. d3 {[%clk
01:28:57]} {[%emt 00:02:08]} e6 {[%clk 01:20:26]} {[%emt 00:03:31]} 9. Nbd2
{[%clk 01:29:14]} {[%emt 00:00:12]} Nbd7 {[%clk 01:20:18]} {[%emt 00:00:38]} 10.
Qc2 {[%emt 00:09:05]} Bxf3 {[%clk 01:12:45]} 11. Nxf3 {[%clk 01:28:45]} {[%emt
00:00:25]} Nh5 {[%clk 01:11:52]} {[%emt 00:01:24]} 12. Bxg7 {[%clk 01:28:44]}
{[%emt 00:00:30]} Nxg7 {[%clk 01:08:39]} {[%emt 00:03:44]} 13. Rfc1 {[%clk
01:28:20]} {[%emt 00:00:53]} Qe7 {[%clk 01:07:19]} {[%emt 00:01:51]} 14. Rab1
{[%clk 01:22:23]} {[%emt 00:06:27]} a5 {[%clk 01:05:45]} {[%emt 00:02:05]} 15.
Qb2 {[%clk 01:21:02]} {[%emt 00:01:49]} Ra7 {[%clk 01:00:50]} {[%emt 00:05:26]}
16. Rc2 {[%clk 01:21:04]} {[%emt 00:00:27]} Rfa8 {[%clk 01:00:45]} {[%emt
00:00:35]} 17. Ne5 {[%clk 01:17:22]} {[%emt 00:04:10]} Nxe5 {[%clk 00:59:41]}
{[%emt 00:01:38]} 18. Qxe5 {[%clk 01:17:46]} {[%emt 00:00:04]} f6 {[%clk
00:58:26]} {[%emt 00:01:46]} 19. Qb2 {[%clk 01:18:05]} {[%emt 00:00:11]} Nf5
{[%clk 00:58:00]} {[%emt 00:00:56]} 20. Bg4 {[%clk 01:14:32]} {[%emt 00:04:02]}
Nh6 {[%clk 00:56:44]} {[%emt 00:01:47]} 21. Bf3 {[%clk 01:14:42]} {[%emt
00:00:18]} Nf5 {[%clk 00:56:26]} {[%emt 00:00:50]} 22. g3 {[%clk 01:14:24]}
{[%emt 00:00:47]} Nd6 {[%clk 00:56:04]} {[%emt 00:00:53]} 23. Qa3 {[%clk
01:12:54]} {[%emt 00:01:57]} Kf7 {[%clk 00:54:13]} {[%emt 00:02:24]} 24. h4
{[%clk 01:10:19]} {[%emt 00:03:05]} Ke8 {[%clk 00:40:43]} {[%emt 00:14:00]} 25.
Kg2 {[%clk 01:10:14]} {[%emt 00:00:35]} Kd8 {[%clk 00:38:41]} {[%emt 00:02:33]}
26. Rh1 {[%clk 01:10:01]} {[%emt 00:00:41]} Nf5 {[%clk 00:36:35]} {[%emt
00:02:37]} 27. Qb2 {[%clk 01:10:06]} {[%emt 00:00:23]} Nd6 {[%clk 00:33:49]}
{[%emt 00:03:17]} 28. Re1 {[%clk 01:02:57]} {[%emt 00:07:38]} Ke8 {[%clk
00:20:35]} {[%emt 00:13:47]} 29. e4 {[%clk 01:02:02]} {[%emt 00:01:24]} dxc4
{[%clk 00:20:38]} {[%emt 00:00:27]} 30. bxc4 {[%clk 00:59:11]} {[%emt
00:03:21]} e5 {[%clk 00:19:58]} {[%emt 00:01:10]} 31. d4 {[%clk 00:58:48]}
{[%emt 00:00:53]} Nf7 {[%clk 00:20:09]} {[%emt 00:00:20]} 32. Rb1 {[%clk
00:54:31]} {[%emt 00:04:44]} Qc7 {[%clk 00:18:59]} {[%emt 00:01:42]} 33. c5
{[%clk 00:52:46]} {[%emt 00:02:16]} exd4 {[%clk 00:18:12]} {[%emt 00:01:17]} 34.
Qxd4 {[%clk 00:52:22]} {[%emt 00:00:52]} Qe5 {[%clk 00:18:27]} {[%emt
00:00:16]} 35. Qe3 {[%clk 00:47:51]} {[%emt 00:04:59]} Rd8 {[%clk 00:17:59]}
{[%emt 00:01:00]} 36. Rcb2 {[%clk 00:39:48]} {[%emt 00:08:32]} Rd7 {[%clk
00:17:38]} {[%emt 00:00:52]} 37. Bg4 {[%clk 00:20:10]} {[%emt 00:20:07]} Re7
{[%clk 00:17:14]} {[%emt 00:00:55]} 38. f4 {[%clk 00:19:22]} {[%emt 00:01:18]}
Qc7 {[%clk 00:16:35]} {[%emt 00:01:09]} 39. Qd4 {[%clk 00:18:03]} {[%emt
00:01:48]} Qd8 {[%clk 00:12:56]} {[%emt 00:04:10]} 40. Qc4 {[%clk 00:15:48]}
{[%emt 00:02:44]} Kf8 {[%clk 00:09:34]} {[%emt 00:03:54]} 41. Rd1 {[%clk
00:13:38]} {[%emt 00:02:38]} Qc7 {[%clk 00:08:07]} {[%emt 00:01:58]} 42. Qd4
{[%clk 00:08:57]} {[%emt 00:05:11]} Kg7 {[%clk 00:02:40]} {[%emt 00:05:58]} 43.
Be2 {[%clk 00:09:15]} {[%emt 00:00:10]} h5 {[%clk 00:01:58]} {[%emt 00:01:13]}
44. Bc4 {[%clk 00:09:40]} {[%emt 00:00:05]} Ra8 {[%clk 00:01:43]} {[%emt
00:00:46]} 45. Bxf7 {[%clk 00:10:04]} {[%emt 00:00:06]} Kxf7 {[%clk 00:01:52]}
{[%emt 00:00:20]} 46. Rf2 {[%clk 00:09:20]} {[%emt 00:01:12]} Rae8 {[%clk
00:02:06]} {[%emt 00:00:18]} 47. e5 {[%clk 00:08:42]} {[%emt 00:01:08]} fxe5
{[%clk 00:01:36]} {[%emt 00:01:00]} 48. fxe5+ {[%clk 00:09:06]} {[%emt
00:00:06]} Kg8 {[%clk 00:01:41]} {[%emt 00:00:25]} 49. Qd6 {[%clk 00:08:02]}
{[%emt 00:01:33]} Qxd6 {[%clk 00:00:40]} {[%emt 00:01:33]} 50. exd6 {[%clk
00:08:25]} {[%emt 00:00:07]} Rd7 {[%clk 00:01:04]} {[%emt 00:00:05]} 51. Rf4
{[%clk 00:07:29]} {[%emt 00:01:26]} Re5 {[%clk 00:00:56]} {[%emt 00:00:38]} 52.
Rc1 {[%clk 00:07:01]} {[%emt 00:00:58]} b6 {[%clk 00:00:42]} {[%emt 00:00:45]}
53. Ra4 {[%clk 00:01:44]} {[%emt 00:05:46]} Rxc5 {[%clk 00:00:56]} {[%emt
00:00:17]} 54. Rxc5 {[%clk 00:02:07]} {[%emt 00:00:06]} bxc5 {[%clk 00:01:24]}
{[%emt 00:00:02]} 55. Rxa5 {[%clk 00:02:30]} {[%emt 00:00:08]} c4 {[%clk
00:01:08]} {[%emt 00:00:46]} 56. Rc5 {[%clk 00:02:33]} {[%emt 00:00:26]} Rxd6
{[%clk 00:01:29]} {[%emt 00:00:10]} 57. Rxc4 {[%clk 00:02:57]} {[%emt
00:00:05]} Rd2+ {[%clk 00:01:39]} {[%emt 00:00:20]} 58. Kf3 {[%clk 00:03:14]}
{[%emt 00:00:12]} Rxa2 {[%clk 00:01:16]} {[%emt 00:00:54]} 59. Rxc6 {[%clk
00:03:39]} {[%emt 00:00:05]} Kf7 {[%clk 00:01:24]} {[%emt 00:00:22]} 60. Rc4
{[%clk 00:03:24]} {[%emt 00:00:43]} Ra5 {[%clk 00:01:31]} {[%emt 00:00:25]} 61.
Rf4+ {[%clk 00:01:45]} {[%emt 00:02:08]} Kg7 {[%clk 00:00:54]} {[%emt
00:01:08]} 62. Ke4 {[%clk 00:00:47]} {[%emt 00:01:27]} Ra4+ {[%clk 00:01:06]}
{[%emt 00:00:19]} 63. Ke5 {[%clk 00:01:10]} {[%emt 00:00:06]} Ra5+ {[%clk
00:01:09]} {[%emt 00:00:28]} 1/2-1/2

[Event "Amateur Tournament (ATO)"]
[Site "Biel, Switzerland"]
[Date "2026.07.15"]
[Round "2.6"]
[White "Nass, Mikael"]
[Black "Keller, Felix"]
[Result "1/2-1/2"]
[TimeControl "90+30+30sec/move"]
[WhiteTitle "-"]
[BlackTitle "-"]
[WhiteFideId "1509365"]
[BlackFideId "1309587"]
[WhiteElo "1776"]
[BlackElo "1920"]

1. e4 {[%clk 01:30:57]} {[%emt 00:00:02]} e6 {[%clk 01:30:45]} {[%emt
00:00:16]} 2. d4 {[%clk 01:31:10]} {[%emt 00:00:16]} d5 {[%clk 01:31:05]}
{[%emt 00:00:09]} 3. Bd3 {[%clk 01:31:10]} {[%emt 00:00:32]} dxe4 {[%clk
01:30:37]} {[%emt 00:00:57]} 4. Bxe4 {[%clk 01:31:28]} {[%emt 00:00:12]} c5
{[%clk 01:27:07]} {[%emt 00:04:00]} 5. Ne2 {[%clk 01:27:40]} {[%emt 00:04:19]}
Nf6 {[%clk 01:25:30]} {[%emt 00:02:06]} 6. Bf3 {[%clk 01:27:42]} {[%emt
00:00:28]} Nc6 {[%clk 01:22:59]} {[%emt 00:03:01]} 7. c3 {[%clk 01:25:42]}
{[%emt 00:02:31]} cxd4 {[%clk 01:22:22]} {[%emt 00:01:07]} 8. Nxd4 {[%clk
01:23:18]} {[%emt 00:02:54]} Nxd4 {[%clk 01:20:52]} {[%emt 00:02:00]} 9. Qxd4
{[%clk 01:22:56]} {[%emt 00:00:52]} Qxd4 {[%clk 01:15:56]} {[%emt 00:05:24]} 10.
cxd4 {[%clk 01:23:16]} {[%emt 00:00:11]} Bb4+ {[%clk 01:13:19]} {[%emt
00:03:06]} 11. Nc3 {[%clk 01:21:58]} {[%emt 00:01:50]} O-O {[%clk 01:12:32]}
{[%emt 00:01:17]} 12. O-O {[%clk 01:20:24]} {[%emt 00:02:04]} Rd8 {[%clk
01:09:37]} {[%emt 00:03:24]} 13. Be3 {[%clk 01:17:18]} {[%emt 00:03:36]} h6
{[%clk 01:04:27]} {[%emt 00:05:41]} 14. Rac1 {[%clk 01:13:27]} {[%emt
00:04:21]} a6 {[%clk 01:03:10]} {[%emt 00:01:47]} 15. Rfd1 {[%clk 01:05:28]}
{[%emt 00:08:28]} Rb8 {[%clk 01:01:13]} {[%emt 00:02:27]} 16. Bf4 {[%clk
00:58:14]} {[%emt 00:07:44]} Bd6 {[%clk 01:00:14]} {[%emt 00:01:29]} 17. Bxd6
{[%clk 00:51:45]} {[%emt 00:06:59]} Rxd6 {[%clk 00:59:29]} {[%emt 00:01:15]} 18.
Ne4 {[%clk 00:50:22]} {[%emt 00:01:53]} Nxe4 {[%clk 00:58:00]} {[%emt
00:01:58]} 19. Bxe4 {[%clk 00:50:35]} {[%emt 00:00:17]} b6 {[%clk 00:49:47]}
{[%emt 00:08:44]} 20. Bc6 {[%clk 00:41:29]} {[%emt 00:09:36]} Bb7 {[%clk
00:48:15]} {[%emt 00:01:59]} 21. Bxb7 {[%clk 00:31:28]} {[%emt 00:10:34]} Rxb7
{[%clk 00:48:03]} {[%emt 00:00:42]} 22. Rc2 {[%clk 00:28:56]} {[%emt 00:03:02]}
Rbd7 {[%clk 00:47:47]} {[%emt 00:00:45]} 23. Rcd2 {[%clk 00:28:53]} {[%emt
00:00:33]} e5 {[%clk 00:36:07]} {[%emt 00:12:10]} 24. d5 {[%clk 00:27:50]}
{[%emt 00:01:34]} Kf8 {[%clk 00:33:42]} {[%emt 00:02:55]} 25. f3 {[%clk
00:27:05]} {[%emt 00:01:15]} Ke7 {[%clk 00:33:26]} {[%emt 00:00:46]} 26. Kf2
{[%clk 00:27:09]} {[%emt 00:00:25]} b5 {[%clk 00:33:32]} {[%emt 00:00:25]} 27.
Ke3 {[%clk 00:25:40]} {[%emt 00:02:00]} Rc7 {[%clk 00:32:33]} {[%emt 00:01:27]}
28. b3 {[%clk 00:22:32]} {[%emt 00:03:40]} f5 {[%clk 00:30:41]} {[%emt
00:02:20]} 29. g3 {[%clk 00:18:55]} {[%emt 00:04:09]} g5 {[%clk 00:28:30]}
{[%emt 00:02:39]} 30. Rd3 {[%clk 00:16:09]} {[%emt 00:03:17]} Kd7 {[%clk
00:24:39]} {[%emt 00:04:21]} 31. g4 {[%clk 00:13:43]} {[%emt 00:02:57]} fxg4
{[%clk 00:23:08]} {[%emt 00:02:00]} 32. fxg4 {[%clk 00:14:01]} {[%emt
00:00:12]} Rf6 {[%clk 00:23:27]} {[%emt 00:00:11]} 33. d6 {[%clk 00:06:33]}
{[%emt 00:07:59]} Rc2 {[%clk 00:22:28]} {[%emt 00:01:26]} 34. Ke4 {[%clk
00:06:12]} {[%emt 00:00:53]} Re2+ {[%clk 00:22:18]} {[%emt 00:00:37]} 35. Re3
{[%clk 00:04:55]} {[%emt 00:01:50]} Rxe3+ {[%clk 00:22:19]} {[%emt 00:00:28]}
36. Kxe3 {[%clk 00:05:24]} {[%emt 00:00:02]} Rxd6 {[%clk 00:22:34]} {[%emt
00:00:16]} 37. Rf1 {[%clk 00:05:22]} {[%emt 00:00:31]} Ke6 {[%clk 00:19:39]}
{[%emt 00:03:25]} 38. Rc1 {[%clk 00:05:04]} {[%emt 00:00:48]} Kd5 {[%clk
00:17:23]} {[%emt 00:02:44]} 39. a3 {[%clk 00:02:49]} {[%emt 00:02:48]} Rc6
{[%clk 00:17:30]} {[%emt 00:00:20]} 40. Rd1+ {[%clk 00:02:55]} {[%emt
00:00:26]} Ke6 {[%clk 00:17:43]} {[%emt 00:00:16]} 41. Rd3 {[%clk 00:01:26]}
{[%emt 00:02:00]} a5 {[%clk 00:16:17]} {[%emt 00:01:56]} 42. h3 {[%clk
00:01:11]} {[%emt 00:00:44]} b4 {[%clk 00:14:22]} {[%emt 00:02:26]} 43. axb4
{[%clk 00:29:45]} {[%emt 00:02:26]} axb4 {[%clk 00:45:15]} {[%emt 00:00:08]} 44.
Ke2 {[%clk 00:26:58]} {[%emt 00:03:17]} Rc1 {[%clk 00:41:59]} {[%emt 00:03:43]}
45. Kd2 {[%clk 00:25:28]} {[%emt 00:02:03]} Rc5 {[%clk 00:39:50]} {[%emt
00:02:37]} 46. Ke2 {[%clk 00:24:56]} {[%emt 00:01:03]} Rd5 {[%clk 00:39:56]}
{[%emt 00:00:24]} 47. Rf3 {[%clk 00:23:35]} {[%emt 00:01:51]} e4 {[%clk
00:38:12]} {[%emt 00:02:15]} 48. Rf8 {[%clk 00:21:23]} {[%emt 00:02:42]} Rd3
{[%clk 00:38:01]} {[%emt 00:00:40]} 49. Re8+ {[%clk 00:21:12]} {[%emt
00:00:42]} Kd5 {[%clk 00:38:12]} {[%emt 00:00:13]} 50. Rd8+ {[%clk 00:20:37]}
{[%emt 00:01:10]} Ke5 {[%clk 00:32:10]} {[%emt 00:06:32]} 51. Rxd3 {[%clk
00:20:48]} {[%emt 00:00:19]} exd3+ {[%clk 00:32:30]} {[%emt 00:00:10]} 52. Kxd3
{[%clk 00:21:12]} {[%emt 00:00:06]} Kd5 {[%emt 00:04:12]} 1/2-1/2

[Event "Amateur Tournament (ATO)"]
[Site "Biel, Switzerland"]
[Date "2026.07.16"]
[Round "3.1"]
[White "Alexakis, Dimitrios"]
[Black "Bellm, Juergen"]
[Result "1-0"]
[TimeControl "90+30+30sec/move"]
[WhiteTitle "-"]
[BlackTitle "-"]
[WhiteFideId "4200527"]
[BlackFideId "533007349"]
[WhiteElo "1959"]
[BlackElo "1765"]

1. e4 {[%clk 01:30:53]} {[%emt 00:00:04]} c6 {[%clk 01:30:56]} {[%emt
00:00:05]} 2. Nc3 {[%clk 01:30:57]} {[%emt 00:00:25]} d5 {[%clk 01:30:30]}
{[%emt 00:00:57]} 3. Nf3 {[%clk 01:31:09]} {[%emt 00:00:17]} dxe4 {[%clk
01:30:22]} {[%emt 00:00:39]} 4. Nxe4 {[%clk 01:31:24]} {[%emt 00:00:13]} Nf6
{[%clk 01:30:07]} {[%emt 00:00:45]} 5. Nxf6+ {[%clk 01:27:45]} {[%emt
00:04:09]} exf6 {[%clk 01:30:30]} {[%emt 00:00:08]} 6. d4 {[%clk 01:27:59]}
{[%emt 00:00:15]} Bd6 {[%clk 01:29:44]} {[%emt 00:01:16]} 7. Bd3 {[%clk
01:28:01]} {[%emt 00:00:28]} O-O {[%clk 01:28:06]} {[%emt 00:02:09]} 8. O-O
{[%clk 01:28:14]} {[%emt 00:00:16]} Nd7 {[%clk 01:21:51]} {[%emt 00:06:46]} 9.
Re1 {[%clk 01:25:52]} {[%emt 00:02:52]} Re8 {[%clk 01:19:23]} {[%emt 00:02:58]}
10. Rxe8+ {[%clk 01:21:33]} {[%emt 00:04:48]} Qxe8 {[%clk 01:19:48]} {[%emt
00:00:05]} 11. c4 {[%clk 01:20:48]} {[%emt 00:01:15]} Nf8 {[%clk 01:18:31]}
{[%emt 00:01:48]} 12. h3 {[%clk 01:17:20]} {[%emt 00:03:57]} Be6 {[%clk
01:13:54]} {[%emt 00:05:08]} 13. Be3 {[%clk 01:14:48]} {[%emt 00:03:01]} Qd7
{[%clk 01:06:21]} {[%emt 00:08:03]} 14. Qf1 {[%clk 01:08:30]} {[%emt 00:06:48]}
Rd8 {[%clk 00:57:02]} {[%emt 00:09:49]} 15. Rd1 {[%clk 01:07:45]} {[%emt
00:01:15]} Qc7 {[%clk 00:55:01]} {[%emt 00:02:32]} 16. a3 {[%clk 01:04:06]}
{[%emt 00:04:08]} a5 {[%clk 00:50:31]} {[%emt 00:05:01]} 17. Rc1 {[%clk
00:54:19]} {[%emt 00:10:16]} Qb8 {[%clk 00:47:46]} {[%emt 00:03:15]} 18. Qe1
{[%clk 00:51:24]} {[%emt 00:03:24]} b6 {[%clk 00:44:41]} {[%emt 00:03:36]} 19.
b4 {[%clk 00:50:12]} {[%emt 00:01:42]} axb4 {[%clk 00:43:01]} {[%emt 00:02:11]}
20. axb4 {[%clk 00:50:39]} {[%emt 00:00:02]} Ng6 {[%clk 00:39:44]} {[%emt
00:03:48]} 21. Qd2 {[%clk 00:39:57]} {[%emt 00:11:11]} f5 {[%clk 00:36:07]}
{[%emt 00:04:07]} 22. Qb2 {[%clk 00:35:41]} {[%emt 00:04:46]} Nf4 {[%clk
00:32:17]} {[%emt 00:04:20]} 23. Bxf4 {[%clk 00:30:11]} {[%emt 00:06:01]} Bxf4
{[%clk 00:32:41]} {[%emt 00:00:07]} 24. Re1 {[%clk 00:30:21]} {[%emt 00:00:18]}
h6 {[%clk 00:30:35]} {[%emt 00:02:36]} 25. Qc2 {[%clk 00:27:38]} {[%emt
00:03:13]} Qc8 {[%clk 00:28:25]} {[%emt 00:02:41]} 26. Rd1 {[%clk 00:23:12]}
{[%emt 00:04:55]} g6 {[%clk 00:19:14]} {[%emt 00:09:42]} 27. Bf1 {[%clk
00:20:45]} {[%emt 00:02:56]} Kh7 {[%clk 00:15:49]} {[%emt 00:03:56]} 28. g3
{[%clk 00:20:39]} {[%emt 00:00:35]} Bb8 {[%clk 00:16:07]} {[%emt 00:00:13]} 29.
Bg2 {[%clk 00:19:54]} {[%emt 00:01:15]} b5 {[%clk 00:13:23]} {[%emt 00:03:15]}
30. d5 {[%clk 00:18:23]} {[%emt 00:02:00]} cxd5 {[%clk 00:13:17]} {[%emt
00:00:36]} 31. c5 {[%clk 00:18:43]} {[%emt 00:00:09]} Qa6 {[%clk 00:08:48]}
{[%emt 00:05:00]} 32. Qc3 {[%clk 00:17:39]} {[%emt 00:01:34]} Bc7 {[%clk
00:08:21]} {[%emt 00:00:57]} 33. Re1 {[%clk 00:17:05]} {[%emt 00:01:03]} Ra8
{[%clk 00:06:52]} {[%emt 00:02:00]} 34. Nd4 {[%clk 00:16:31]} {[%emt 00:01:04]}
Qc8 {[%clk 00:06:01]} {[%emt 00:01:21]} 35. Nxe6 {[%clk 00:14:06]} {[%emt
00:02:54]} fxe6 {[%clk 00:06:25]} {[%emt 00:00:07]} 36. Qf6 {[%clk 00:14:20]}
{[%emt 00:00:15]} Ra6 {[%clk 00:02:30]} {[%emt 00:04:26]} 37. Qf7+ {[%clk
00:11:44]} {[%emt 00:03:05]} Kh8 {[%clk 00:02:51]} {[%emt 00:00:10]} 38. Bxd5
{[%clk 00:11:36]} {[%emt 00:00:37]} e5 {[%clk 00:02:44]} {[%emt 00:00:38]} 39.
c6 {[%clk 00:10:47]} {[%emt 00:01:19]} Bd6 {[%clk 00:01:38]} {[%emt 00:01:37]}
40. Qf6+ {[%clk 00:10:47]} {[%emt 00:00:29]} 1-0